[Event "Lliga Catalana DH 2023"]
[Site "Catalonia"]
[Date "2023.02.25"]
[Round "6.4"]
[White "Moskalenko, Viktor"]
[Black "Valenzuela Gomez, Fernando"]
[Result "0-1"]
[ECO "D00"]
[WhiteElo "2448"]
[BlackElo "2396"]
[Annotator "TA"]
[PlyCount "76"]
[EventDate "2023.01.24"]
[EventType "team-tourn"]
[EventCountry "ESP"]
[SourceTitle "playchess.com"]
[Source "ChessBase"]
[SourceQuality "1"]
[TimeControl "40/5400+30:1800+30"]

{[%evp 9,76,0,0,-11,-8,-30,0,0,0,0,7,-20,-10,-18,-16,-4,-6,-5,0,0,-6,-10,0,-28,22,-47,0,-42,21,16,14,9,19,26,22,33,19,20,29,-21,0,0,0,-179,-167,-188,-186,-168,-150,-152,-162,-198,-191,-262,-287,-248,-315,-286,-260,-244,-248,-1233,-1206,-1316,-1100,-29983,-29981,-29998,-29999]} 1. d4 {[%emt 0:00:02]} Nf6 {[%emt 0:13:02]} 2. Bg5 {[%emt 0:00:42]} d5 {[%emt 0:00:39]} 3. Nd2 {[%emt 0:00:16]} Nc6 {[%emt 0:02:17]} 4. Ngf3 {[%emt 0:11:29]} Ne4 {[%emt 0:00:16]} 5. Bf4 {[%emt 0:02:52]} g5 {[%emt 0:00:01]} 6. Nxe4 {[%emt 0:03:12] D00: 1 d4 d5: Unusual lines.} gxf4 {[%emt 0:01:31] [#]} 7. Ned2 $146 {[%emt 0:00:32]} ({Predecessor:} 7. Nc3 a6 8. e3 fxe3 9. fxe3 Bh6 10. Qe2 Qd6 11. O-O-O Rg8 12. Kb1 Bf5 13. Ne5 {0-1 Druska,J (2338)-Zvarik,M (2255) SVK-chT1E 1112 2011 (4.1)}) 7... Bg7 {[%emt 0:02:44]} 8. c3 $1 {[%emt 0:00:20] The position is equal.} Qd6 {[%emt 0:03:17]} 9. g3 {[%emt 0:04:41]} Bf5 {[%emt 0:04:03]} 10. Bg2 {[%emt 0:23:13]} Bf6 {[%emt 0:07:35]} 11. Nb3 {[%emt 0:02:26]} O-O-O {[%emt 0:05:15]} 12. Nc5 {[%emt 0:11:08]} Kb8 {[%emt 0:05:58]} 13. Nd3 {[%emt 0:09:57]} fxg3 {[%emt 0:01:56]} 14. hxg3 {[%emt 0:00:02]} h5 {[%emt 0:00:41]} 15. Qd2 {[%emt 0:10:12]} Be4 {[%emt 0:20:18][%cal Oh5h4]} 16. Nc5 {[%emt 0:01:40]} e5 {[%emt 0:03:52]} (16... Bxf3 $142 17. Bxf3 e5) 17. e3 {[%emt 0:03:29]} (17. dxe5 $11 Qxc5 18. exf6) 17... Bg6 {[%emt 0:05:09]} (17... Bf5 $15) 18. b4 {[%emt 0:04:18][%cal Bb2b4,Bb4b5][%mdl 32]} b6 {[%emt 0:04:57]} (18... Bf5 $15) 19. Na6+ $11 {[%emt 0:01:37] Excellent horsemanship.} Kb7 {[%emt 0:04:20]} 20. b5 {[%emt 0:00:05]} Na5 {[%emt 0:02:15]} 21. dxe5 {[%emt 0:01:43]} Bxe5 {[%emt 0:00:25]} 22. Nxe5 {[%emt 0:00:27]} Qxe5 {[%emt 0:00:05]} 23. Qd4 {[%emt 0:00:32] Prevents Be4.} Qe8 {[%emt 0:04:52]} 24. Qb4 {[%emt 0:06:24]} (24. Bxd5+ c6 25. bxc6+ Kxa6 $17) (24. Bf1 $142) 24... Be4 $36 {[%emt 0:01:19][%mdl 2048] Black is pushing. Really sharp!} (24... Bd3 $5 {[%cal Rd3b5]}) 25. Bxe4 {[%emt 0:00:06]} dxe4 {[%emt 0:01:05]} 26. Nc5+ $2 {[%emt 0:00:47]} bxc5 $19 {[%emt 0:00:05]} 27. Qxa5 {[%emt 0:00:02]} Qe5 {[%emt 0:00:40]} 28. Rd1 {[%emt 0:00:49]} Rxd1+ {[%emt 0:00:51]} 29. Kxd1 {[%emt 0:00:02][%mdl 4096] Endgame [#] KQR-KQR} Rd8+ $1 {[%emt 0:00:02]} 30. Kc2 {[%emt 0:01:08]} Qf5 {[%emt 0:00:48]} (30... Qd6 31. Qa6+ (31. Rxh5 $2 Qd1+ 32. Kb2 Rd2+ 33. Ka3 Qxh5 $19) 31... Ka8 32. Qxd6 (32. Rxh5 $2 Qd1+ 33. Kb2 Qxh5 $19) 32... Rxd6 33. Rxh5 $16) 31. Kb3 {[%emt 0:00:51]} (31. Qa6+ {was necessary.} Kb8 32. Qc6) 31... Rd2 {[%emt 0:00:46] Strongly threatening ...Qd5+.} 32. Qa6+ {[%emt 0:00:26]} Kb8 {[%emt 0:00:14] ( -> ...Qd5+)} 33. Qc6 {[%emt 0:00:02]} Rd6 {[%emt 0:01:21]} ({And not} 33... Qxf2 34. Qe8+ (34. Rxh5 $2 {is the wrong capture.} Rb2+ 35. Ka3 Rxa2+ 36. Kb3 Qc2+ 37. Kc4 Qe2+ 38. Kxc5 Qxh5+ $19) (34. Qxe4 a5 $15) 34... Kb7 35. Qxe4+ Kb8 36. Qe8+ (36. Rxh5 $2 Rb2+ 37. Kc4 Qe2+ {[%mdl 64] Skewer, Double Attack} 38. Qd3 Qxh5 $19) 36... Kb7 37. Qe4+ (37. Rxh5 $2 Rb2+ 38. Kc4 Qe2+ 39. Kxc5 Qxh5+ $19) 37... Kb8 38. a3 $11 (38. Rxh5 $2 Rb2+ 39. Kc4 Qe2+ {[%mdl 64] Skewer, Double Attack} 40. Qd3 Qxh5 $19) (38. Qe8+ Kb7 $11)) 34. Qe8+ {[%emt 0:00:17]} Kb7 {[%emt 0:00:02]} 35. Rh4 $2 {[%emt 0:00:30] [#]} (35. Rc1 a6 36. c4) 35... Qd5+ $1 {[%emt 0:01:08]} 36. Ka3 {[%emt 0:00:24]} Re6 {[%emt 0:00:12]} 37. Qh8 {[%emt 0:00:55]} Qc4 {[%emt 0:00:39]} 38. Qxh5 {[%emt 0:01:11]} Qxc3+ {[%emt 0:00:13] Weighted Error Value: White=0.59/Black=0.09 (flawless)} 0-1

[Event "Lliga Catalana DH 2023"]
[Site "Catalonia"]
[Date "2023.02.25"]
[Round "6.4"]
[White "Ribera Veganzones, Josep Maria"]
[Black "Matnadze Bujiashvili, Ann"]
[Result "0-1"]
[ECO "B12"]
[WhiteElo "2202"]
[BlackElo "2392"]
[Annotator "TA"]
[PlyCount "70"]
[EventDate "2023.01.24"]
[EventType "team-tourn"]
[EventCountry "ESP"]
[SourceTitle "playchess.com"]
[Source "ChessBase"]
[SourceQuality "1"]
[TimeControl "40/5400+30:1800+30"]

{[%evp 9,69,40,41,39,35,28,50,48,49,33,38,31,37,33,28,17,39,39,57,53,50,42,31,37,35,28,36,26,57,62,57,0,0,0,7,-2,0,-2,0,0,0,-48,-49,-138,-98,-93,-105,-100,-66,-209,-221,-465,-467,-655,-584,-1017,-998,-987,-954,-6997,-5094,-29999]} 1. e4 c6 2. d4 d5 3. e5 Bf5 4. Nd2 h5 5. Nb3 e6 6. Nf3 {B12: Caro-Kann: Advance Variation.} Nd7 7. Be2 Bg4 8. O-O {White is slightly better.} Ne7 {[#]} 9. Bf4 $146 ({Predecessor:} 9. Bg5 Qc7 10. a4 O-O-O 11. a5 f6 12. Be3 a6 13. Re1 Nf5 14. Qc1 h4 15. h3 Bxf3 16. Bxf3 fxe5 17. dxe5 {1-0 Jurasek,M (2270)-Lacina,F (1947) CZE-chT1W 1819 2018 (9.7)}) 9... Nf5 10. Qd2 Qb6 11. a4 a5 12. Rfd1 Bb4 13. Qd3 Qc7 14. h3 Bxf3 15. Bxf3 g6 16. Bg5 Be7 17. Bxe7 Kxe7 18. c4 dxc4 19. Qxc4 Kf8 20. Nd2 (20. Qc3 $14) 20... Kg7 $11 21. Ne4 Rad8 22. Ng5 {[%cal Oc4e6]} Nb6 {[%cal Bd7b6,Bb6d5,Bd5f4][%mdl 32]} 23. Qc5 Nd5 24. Ne4 Rd7 25. Rac1 (25. Ra3 $11) 25... Qd8 $15 26. Nd2 (26. Qa3 $15) 26... Nf4 27. Nb3 Nh4 {And now ...Nxf3+ would win.} (27... Qg5 {is interesting.} 28. Kf1 Nh4 29. Be4 Nhxg2 30. Rc3 Nh4) 28. Qc3 Nhxg2 {[%cal Od8h4][%mdl 64] [#] Threatens to win with ...Qh4! Deflection. Black is more active.} 29. Kh2 {This costs White the game.} ({White should try} 29. Nc5 $15 Rc7 30. Kf1) 29... Nh4 $19 30. Nxa5 $2 (30. Qe3 Qg5 31. Rg1 Nxf3+ 32. Qxf3) 30... Nf5 {[%cal Bh4f5,Bf5d4,Bd4e2][%mdl 32]} 31. Rc2 (31. Nb3 $142 Qh4 32. Bg2) 31... Nxd4 32. Nxb7 Qh4 33. Bg2 Nde2 {[%mdl 64] [#] Discovered Attack. A dynamic duo of knights.} 34. Qe1 Qg4 {[%csl Gf4][%cal Rg4g2]} 35. Bf1 Qg1# {An entertaining game by Matnadze Bujiashvili.   Weighted Error Value: White=0.94/Black=0.10 (very precise)} 0-1

[Event "Lliga Catalana DH 2023"]
[Site "Catalonia"]
[Date "2023.02.25"]
[Round "6.5"]
[White "Baches Garcia, Guillermo"]
[Black "Pham Guerrero, Sergi"]
[Result "1-0"]
[ECO "B76"]
[WhiteElo "2328"]
[BlackElo "2065"]
[Annotator "TA"]
[PlyCount "65"]
[EventDate "2023.01.24"]
[EventType "team-tourn"]
[EventCountry "ESP"]
[SourceTitle "playchess.com"]
[Source "ChessBase"]
[SourceQuality "1"]
[TimeControl "40/5400+30:1800+30"]

{[%evp 22,65,0,0,52,11,151,119,134,79,81,95,165,154,123,169,210,101,195,182,189,165,163,6,96,81,203,115,208,212,193,214,212,202,377,375,328,208,308,316,283,318,1364,1321,2311,1191]} 1. e4 c5 2. Nf3 d6 3. d4 cxd4 4. Nxd4 Nf6 5. Nc3 g6 6. Be3 Bg7 7. f3 O-O 8. Qd2 Nc6 9. O-O-O d5 10. Nxc6 bxc6 11. Bh6 Bxh6 12. Qxh6 e5 {B76: Sicilian Dragon: Yugoslav Attack, 9 g4 and 9 0-0-0.} (12... Rb8 $1 $11) 13. h4 {Threatens to win with exd5.} Be6 {[#]} (13... d4 $1 $11 {keeps the balance.}) 14. Qg5 $146 ({Predecessor:} 14. h5 d4 15. f4 Qc7 16. hxg6 fxg6 17. f5 dxc3 18. fxe6 cxb2+ 19. Kb1 Qe7 20. Bc4 {1-0 Salimova,N (2387)-Fernandez,M (2128) Titled Tuesday intern op 14th Feb Late blitz 2023 (1)}) 14... Rb8 {White is better.} 15. Qxe5 (15. h5 $142) 15... Nd7 $16 16. Qd6 (16. Qd4 $6 c5 17. Qd2 d4 $11) 16... Qb6 (16... dxe4 $16 {keeps fighting.} 17. Nxe4 (17. Qxc6 exf3 18. Qxf3 Qa5 $11) 17... Qa5) 17. b3 $18 {Active counter play!} Qe3+ 18. Kb2 Rfd8 19. Rd3 (19. Qxc6 Rdc8 20. Rd3 Qf2 $15) (19. exd5 $6 Nc5 20. Qg3 (20. Qxc6 $2 Rdc8 $19) 20... cxd5 $16) (19. h5 $1 $18 {[%cal Rh5g6]}) 19... Qf2 (19... Qc5 $16 20. Qxc5 Nxc5) 20. Qf4 (20. exd5 $6 Nc5 21. Qf4 (21. Qxc6 $2 Bf5 $19) 21... Nxd3+ 22. Bxd3 Bxd5 $14) 20... Qc5 21. h5 d4 22. Nd1 $2 (22. Na4 $1 $18 {[%cal Ra4c5]} Qe5 23. Qxe5 Nxe5 24. Rd2) 22... Ne5 (22... gxh5 $2 23. Qh6 Qf8 24. Qg5+ (24. Rxh5 Qxh6 25. Rxh6 Kg7 $16) (24. Qxh5 Qg7 $16) 24... Qg7 25. Qxg7+ (25. Rxh5 Bc4 $16) (25. Qxh5 c5 $11) 25... Kxg7 26. Rxd4 $18) (22... g5 $1 $11 {remains equal.} 23. Qg3 Kh8) 23. Rd2 $16 {Black must now prevent Kb1.} Qd6 (23... d3 $2 24. hxg6 (24. Bxd3 Qd4+ 25. Nc3 Bc4 $16) 24... Nxg6 25. Qf6 $18) (23... a5 $16 {was worth a try.}) 24. Qh6 (24. Qg5 $18) 24... Rd7 (24... Qe7 $16 {was necessary.}) 25. hxg6 $18 fxg6 {[#]} 26. f4 $1 Ng4 {[#]} 27. Qg5 {f5 is the strong threat.} h6 $2 (27... Rg7 {was called for.} 28. Be2 h6) 28. Rxh6 (28. Qxg6+ Rg7 29. e5 Rxg6 $18) 28... Nxh6 29. Qxh6 {e5 would be deadly.} (29. Qxg6+ Rg7 30. Qxh6 Rh7 31. Qg6+ (31. Qf6 Rf8 $16) 31... Rg7 $16) 29... c5 (29... Rh7 $142 30. Qxg6+ Rg7) 30. e5 ({Less strong is} 30. Qxg6+ Rg7 31. Qh6 Rh7 32. Qg5+ Rg7 $11) 30... Qc6 31. g4 {Strongly threatening Rh2.} ({Not} 31. Qxg6+ Rg7 32. Qh6 Rh7 33. Qg6+ Rg7 $16) 31... c4 $2 (31... Rh7 32. Qxg6+ Rg7) 32. Rh2 {Intending Qh8+ and mate.} (32. Qxg6+ $2 {too greedy.} Rg7 33. Qh6 c3+ 34. Kc1 cxd2+ $19) 32... Kf7 {[#]} 33. f5 $1 {[%mdl 512] Excellently played by Baches Garcia!   Weighted Error Value: White=0.33/Black=0.64} 1-0

[Event "Lliga Catalana DH 2023"]
[Site "Catalonia"]
[Date "2023.02.25"]
[Round "6.5"]
[White "Oms Fuentes, Lluis"]
[Black "Fernandez Aguado, Enrique"]
[Result "1-0"]
[ECO "B23"]
[WhiteElo "2317"]
[BlackElo "2281"]
[Annotator "TA"]
[PlyCount "57"]
[EventDate "2023.01.24"]
[EventType "team-tourn"]
[EventCountry "ESP"]
[SourceTitle "playchess.com"]
[Source "ChessBase"]
[SourceQuality "1"]
[TimeControl "40/5400+30:1800+30"]

{[%evp 12,57,-2,-10,-8,-32,-19,-13,14,0,28,23,87,95,106,72,216,193,200,198,204,193,293,296,180,80,211,244,241,220,161,173,300,306,401,354,385,391,386,360,1211,852,29982,29983,29989,29990,29987,29988]} 1. e4 {[%emt 0:00:30]} c5 {[%emt 0:03:13]} 2. Nc3 {[%emt 0:01:00]} e6 {[%emt 0:01:06]} 3. g3 {[%emt 0:00:42]} d5 {[%emt 0:00:16]} 4. Bg2 {[%emt 0:00:54]} d4 {[%emt 0:02:32]} 5. Nce2 {[%emt 0:00:08]} Nc6 {[%emt 0:00:17]} 6. d3 {[%emt 0:00:07]} e5 {[%emt 0:00:32]} 7. f4 {[%emt 0:00:29]} Nf6 {[%emt 0:03:03] B23: Closed Sicilian: Lines without g3.} 8. h3 {[%emt 0:03:53]} Bd6 {[%emt 0:03:05]} 9. Nf3 {[%emt 0:00:32]} Qe7 {[%emt 0:10:03] [#] The position is equal.} 10. O-O $146 {[%emt 0:01:07]} ({Predecessor:} 10. c3 O-O 11. O-O Rd8 12. cxd4 cxd4 13. f5 h6 14. g4 Nh7 15. h4 f6 16. Ng3 {0-1 Dykacz,K-Siekanski,J (2285) POL-chT 47th 1991 (2)}) 10... Bd7 {[%emt 0:00:16]} 11. c3 {[%emt 0:01:04]} dxc3 {[%emt 0:02:45]} (11... O-O $11) 12. bxc3 $16 {[%emt 0:02:03] aiming for fxe5.} O-O-O {[%emt 0:05:29]} 13. Qc2 {[%emt 0:13:15] fxe5 would be deadly.} Rhe8 {[%emt 0:16:10]} (13... exf4 $16 14. gxf4 (14. Bxf4 Bxf4 15. Nxf4 Kb8 $14) 14... Rhe8) 14. fxe5 $18 {[%emt 0:10:35]} Nxe5 {[%emt 0:04:26]} 15. Nxe5 {[%emt 0:00:25]} Bxe5 {[%emt 0:17:42]} 16. d4 {[%emt 0:01:30]} Bc7 {[%emt 0:01:59]} (16... Bc6 $142) 17. e5 {[%emt 0:00:49]} Bb5 {[%emt 0:06:21]} 18. Ba3 {[%emt 0:16:29]} (18. exf6 Qxe2 19. Qxe2 Bxe2 $11) (18. Rf2 $18 {has better winning chances.} Bxe2 {[%mdl 64] Remove Defender} 19. Qxe2 (19. Rxe2 Qe6 $18) 19... cxd4 20. Qc4) 18... Bb6 {[%emt 0:02:29]} (18... Bxe5 $16 {keeps fighting.} 19. Rab1 (19. dxe5 Qxe5 20. Rf2 Ne4 $14) 19... Ba6) 19. Rf2 {[%emt 0:06:23]} (19. exf6 Qxe2 20. Qxe2 Bxe2 21. dxc5 Bxf1 22. Rxf1 Bc7 23. fxg7 Rg8 $14) 19... Nd7 {[%emt 0:03:15][%cal Od7e5]} 20. Rb1 {[%emt 0:02:27]} (20. Qxh7 Nxe5 21. Nf4 (21. dxe5 Qxe5 22. Rxf7 Qxe2 $15) (21. Qxg7 Nd3 $11) 21... Nc4 22. Bxc5 Bxc5 23. Qf5+ Bd7 $11) 20... Ba6 {[%emt 0:03:03][%cal Od7e5] [#]} 21. Nf4 $1 $36 {[%emt 0:02:28][%mdl 2048] White has strong initiative.} (21. Qxh7 $6 f6 $14) 21... Qg5 {[%emt 0:02:15] [#]} (21... f6 {is a better defense.}) 22. Kh2 $1 {[%emt 0:01:05]} ({Less strong is} 22. Qxh7 Qxg3 23. Rf3 Qg5 $11) 22... h5 {[%emt 0:00:30]} 23. Nd5 {[%emt 0:04:54]} h4 {[%emt 0:03:30]} 24. gxh4 {[%emt 0:00:41]} ({Not} 24. Rxf7 Qxg3+ 25. Kh1 Bd3 $16) 24... Qxh4 {[%emt 0:00:50]} 25. Rxf7 {[%emt 0:00:36] Threatens to win with dxc5.} g5 $2 {[%emt 0:02:39]} (25... Qh5) 26. Qf5 {[%emt 0:00:19]} cxd4 {[%emt 0:00:42]} 27. e6 {[%emt 0:01:47][%cal Be5e6,Be6e7][%mdl 32] White mates.} Nc5 {[%emt 0:03:10]} 28. e7+ {[%emt 0:00:41][%mdl 64] Discovered Attack} Rd7 {[%emt 0:01:10]} 29. Rxb6 {[%emt 0:01:08] A cool game by Oms Fuentes.   Weighted Error Value: White=0.14 (very precise) /Black=0.70} 1-0

[Event "Lliga Catalana DH 2023"]
[Site "Catalonia"]
[Date "2023.02.25"]
[Round "6.6"]
[White "Perpinya Rofes, Lluis Maria"]
[Black "Martin Gonzalez, Angel"]
[Result "1-0"]
[ECO "B50"]
[WhiteElo "2261"]
[BlackElo "2216"]
[Annotator "TA"]
[PlyCount "93"]
[EventDate "2023.01.24"]
[EventType "team-tourn"]
[EventCountry "ESP"]
[SourceTitle "playchess.com"]
[Source "ChessBase"]
[SourceQuality "1"]
[TimeControl "40/5400+30:1800+30"]

{[%evp 18,93,36,35,40,38,61,43,50,47,47,37,55,0,46,49,52,68,64,67,84,91,265,260,237,66,62,51,58,44,48,58,60,29,56,54,72,66,106,28,46,61,59,30,27,0,27,26,21,36,43,27,41,21,690,637,851,787,802,738,738,749,650,639,29963,29964,29956,29946,29948,12825,29972,29973,29972,29974,29975,29976,29978,29979]} 1. e4 {[%emt 0:00:21]} c5 {[%emt 0:00:06]} 2. Nf3 {[%emt 0:01:37]} d6 {[%emt 0:00:08]} 3. c3 {[%emt 0:02:57]} Nf6 {[%emt 0:00:08]} 4. Bd3 {[%emt 0:01:22]} Nc6 {[%emt 0:03:08]} 5. O-O {[%emt 0:01:58]} g6 {[%emt 0:03:23]} 6. Bc2 {[%emt 0:05:16]} Bg4 {[%emt 0:02:18]} 7. d3 {[%emt 0:02:16]} Bg7 {[%emt 0:00:08]} 8. Nbd2 {[%emt 0:00:31]} O-O {[%emt 0:12:13]} 9. h3 {[%emt 0:02:08]} Bxf3 {[%emt 0:04:06]} 10. Nxf3 {[%emt 0:01:06]} b5 {[%emt 0:03:12] B50: Sicilian: 2...d6, Miscellaneous.} 11. d4 {[%emt 0:15:13]} Nd7 {[%emt 0:00:22]} 12. Be3 {[%emt 0:06:49]} Rb8 {[%emt 0:04:37] [#] White is slightly better.} 13. Qe2 $146 {[%emt 0:17:33]} ({Predecessor:} 13. dxc5 Nxc5 14. Qd5 Rc8 15. Rad1 Qe8 16. a3 a6 17. Rfe1 Nd7 18. Re2 Qd8 19. Qa2 {1-0 Shushpanov,R-Fiedler,B Policka op 1995 (7)}) 13... b4 {[%emt 0:04:33]} 14. Ba4 {[%emt 0:02:15]} Qc7 {[%emt 0:00:19]} 15. d5 {[%emt 0:04:28]} (15. Rac1 $14) 15... Nce5 {[%emt 0:17:12]} (15... Na5 $1 $11 {should be considered.}) 16. Nxe5 $14 {[%emt 0:00:41]} Nxe5 {[%emt 0:00:33]} 17. c4 {[%emt 0:02:02]} e6 {[%emt 0:01:32]} 18. Rad1 {[%emt 0:02:05]} exd5 {[%emt 0:00:58]} 19. Rxd5 {[%emt 0:02:59]} (19. cxd5 $6 c4 $11) 19... f5 $2 {[%emt 0:09:51]} (19... Nc6 $16 {was called for.}) 20. f4 $18 {[%emt 0:06:56]} Nc6 {[%emt 0:03:55]} 21. Bxc6 {[%emt 0:03:25]} (21. e5 $1 $18 {[%cal Re5d6]} Rbd8 22. Bxc6 Qxc6 23. Rfd1) 21... Qxc6 $14 {[%emt 0:00:14]} 22. Rfd1 {[%emt 0:00:33]} Rbe8 $1 {[%emt 0:04:02]} 23. e5 {[%emt 0:09:21][%mdl 64] [#] Deflection} ({Inferior is} 23. Rxd6 Qxe4 24. Kf2 Bd4 25. R6xd4 cxd4 26. Rxd4 Qxd4 27. Bxd4 Rxe2+ 28. Kxe2 Kf7 $17) 23... dxe5 {[%emt 0:00:50]} 24. Bxc5 {[%emt 0:00:05]} exf4 {[%emt 0:00:37]} 25. Qf2 {[%emt 0:01:00]} Rf7 {[%emt 0:01:39]} 26. b3 {[%emt 0:01:35]} a5 {[%emt 0:09:49]} 27. Qxf4 {[%emt 0:03:26]} a4 {[%emt 0:01:59]} 28. Qf3 {[%emt 0:01:20]} (28. Bxb4 $16 {Rd8 is the strong threat.} Rb7 29. Qd2) 28... axb3 {[%emt 0:01:22]} 29. axb3 {[%emt 0:00:21]} (29. Bxb4 $2 {loses.} bxa2 30. Bc3 Qxc4 $19) 29... Bf8 {[%emt 0:04:57]} 30. Bxf8 {[%emt 0:01:20]} Rfxf8 {[%emt 0:00:02]} 31. Rd7 {[%emt 0:01:07]} Re4 {[%emt 0:02:16]} 32. Qf2 {[%emt 0:01:12] And now R1d6 would win.} (32. Qg3 {with more complications.} Qc5+ 33. Kh1 Rf7 34. R1d5) 32... Rf7 {[%emt 0:00:44]} 33. R7d6 {[%emt 0:00:35]} Qc7 {[%emt 0:01:35]} 34. c5 {[%emt 0:00:42]} Rfe7 {[%emt 0:01:26][%cal Oe4e1]} 35. c6 $36 {[%emt 0:00:39][%mdl 2048] White has the initiative.} R4e6 $2 {[%emt 0:00:46][%mdl 8192] [#]} (35... Kf7 $11) 36. Qc5 $1 $18 {[%emt 0:00:23] Black must now prevent Qc4.} Rxd6 {[%emt 0:02:17]} 37. Rxd6 {[%emt 0:00:12][%mdl 4096] Endgame Qd5+ would be deadly. KQR-KQR} ({Stronger than} 37. Qxd6 Qxd6 38. Rxd6 Kf7 $11) 37... Re1+ {[%emt 0:00:23]} 38. Kf2 {[%emt 0:00:12]} Re7 {[%emt 0:00:43]} 39. Qxb4 {[%emt 0:00:39] Threatens to win with Qd4.} Qa7+ {[%emt 0:01:04]} 40. Qd4 {[%emt 0:00:42]} Qa6 {[%emt 0:00:31]} 41. Qc4+ {[%emt 0:31:00]} Qxc4 {[%emt 0:30:05]} 42. bxc4 {[%emt 0:00:02] KR-KR} Kf7 {[%emt 0:00:13]} 43. Rd7 {[%emt 0:00:48] White threatens Rxe7+ and mate.} Rxd7 {[%emt 0:00:16]} 44. cxd7 {[%emt 0:00:03] White mates.} Ke7 {[%emt 0:00:01]} 45. Ke3 {[%emt 0:00:15]} Kxd7 {[%emt 0:00:24]} 46. Kf4 {[%emt 0:00:09]} Kd6 {[%emt 0:01:27]} 47. Kg5 {[%emt 0:00:09] Weighted Error Value: White=0.15 (very precise) /Black=0.50} 1-0

[Event "Lliga Catalana DH 2023"]
[Site "Catalonia"]
[Date "2023.02.25"]
[Round "6.6"]
[White "Gomez Anadon, Daniel"]
[Black "Chueca Forcen, Alberto"]
[Result "0-1"]
[ECO "B72"]
[WhiteElo "2141"]
[BlackElo "2354"]
[Annotator "TA"]
[PlyCount "90"]
[EventDate "2023.01.24"]
[EventType "team-tourn"]
[EventCountry "ESP"]
[SourceTitle "playchess.com"]
[Source "ChessBase"]
[SourceQuality "1"]
[TimeControl "40/5400+30:1800+30"]

{[%evp 21,90,51,60,68,63,67,74,64,56,35,93,81,93,43,46,38,41,45,82,22,16,-68,-64,-62,-70,-70,-59,-65,-56,-58,-52,-71,-70,-78,-70,-128,-12,-68,-66,-106,-95,-111,-78,-81,-64,-63,-8,-8,-8,-17,-17,-20,-20,-41,-41,-102,0,0,0,-8,0,-8,-8,-8,-8,-54,-47,-58,-59,-457,-450]} 1. e4 c5 2. Nf3 d6 3. d4 cxd4 4. Nxd4 Nf6 5. Nc3 g6 6. Be3 Bg7 7. Be2 O-O 8. Qd2 Nc6 9. O-O-O Nxd4 10. Bxd4 Be6 11. h4 Qa5 12. Qg5 {B72: Sicilian Dragon: 6 Be3, lines with h3+Bc4 and sidelines.} Qxg5+ 13. hxg5 Nd7 14. Nd5 {White is better.} Bxd5 15. exd5 f6 {Black is weak on the light squares} ({Black should try} 15... Bxd4 $14 16. Rxd4 f6) 16. Bb5 $16 {[#]} Nc5 $146 ({Predecessor:} 16... Rad8 17. Rde1 a6 18. Bxd7 Rxd7 19. gxf6 exf6 20. Bb6 f5 21. f4 h5 22. Re6 Kf7 {½-½ Poetsch,H (2492)-Kurayan,R (2411) Rheinland Pfalz op 7th 2015 (7)}) 17. Rde1 (17. gxf6 $16 Bxf6 18. Be3) 17... a6 $14 18. Bf1 {Threatens to win with b4.} Rae8 19. gxf6 Bxf6 20. Bxc5 (20. Be3 $1 $16) 20... dxc5 $11 21. g3 ({Better is} 21. Kb1 $11) 21... Bd4 $15 22. Bh3 Bxf2 {[%cal Bd4f2,Bf2g3,Bg3d6][%mdl 32]} (22... Rxf2 23. d6 e6 24. d7 $16 (24. Rxe6 Be3+ 25. Kb1 Rxe6 $14) (24. Bxe6+ Kg7 $16)) 23. Re2 Bxg3 {Strongly threatening ...Bf4+.} 24. Bd7 {[#]} Bd6 $1 {...Rd8 would be deadly.} 25. Bxe8 Rxe8 {[%mdl 4096] Endgame KRR-KRB} 26. Rf1 Kg7 27. Kd1 h5 {[%cal Bh7h5,Bh5h4,Bh4h3,Bh3h2][%mdl 32]} 28. Re6 {[#]} ({White should play} 28. Re3 $15) 28... Kh6 (28... Rh8 $1 $17 {White must now prevent ...h4.} 29. Rg1 Rh6) 29. Ke2 (29. Rg1 $11 Rg8 30. Rh1) 29... h4 30. Rf5 h3 31. Kf1 h2 32. Kg2 Rh8 33. Kh1 Kg7 (33... c4 $15) 34. Rg5 $11 Rh6 35. a4 b5 36. a5 Kf7 37. Rf5+ Ke8 38. Rg5 {[#]} (38. b3 $15) 38... Kf7 (38... Rh4 $1 $17) 39. Rf5+ Kg7 40. Rg5 $132 {[%mdl 2048] White is not keeping still} b4 41. Rg2 Kf7 42. Rf2+ Ke8 43. Rg2 (43. Rd2 $11) 43... Rh5 $1 $15 44. Rgxg6 (44. Rexg6 Rxd5 45. Rxd6 (45. Rg8+ $2 Kd7 $19) 45... exd6 46. Kxh2 Kd7 $19) 44... Rxd5 {( -> ...Rd1+)} 45. Rxd6 $2 {[%mdl 8192]} exd6 {Weighted Error Value: White=0.36/Black=0.15 (very precise)} (45... Rxd6 $2 {too greedy.} 46. Rg8+ Kd7 47. Rg2 $19) 0-1